fUSD/lending_fUSD_20240116
["ID","MTS","AMOUNT","RATE_DAILY","PERIOD"]
[311746221,1705374650584,-663.04,0.00022438,2]
[311746222,1705374650594,-500.0,0.00022438,2]
[311746223,1705374650604,-500.0,0.00022438,2]
[311746224,1705374650614,-500.0,0.00022438,2]
[311746225,1705374650624,-542.6,0.00022438,2]
[311746226,1705374650634,-573.13,0.00022438,2]
[311746227,1705374650643,-833.02,0.00022438,2]
[311746228,1705374650652,-500.01,0.00022438,2]
[311746229,1705374650662,-500.0,0.00022438,2]
[311746230,1705374650673,-500.0,0.00022438,2]
[311746231,1705374650682,-323.45045551,0.00022438,2]
[311746232,1705374650691,-500.0,0.00022438,2]
[311746233,1705374650701,-500.0,0.00022438,2]
[311746234,1705374650710,-500.0,0.00022438,2]
[311746235,1705374650719,-500.0,0.00022438,2]
[311746236,1705374650728,-769.9,0.00022438,2]
[311746237,1705374650739,-500.0,0.00022438,2]
[311746238,1705374650748,-500.0,0.00022438,2]
[311746239,1705374650757,-500.0,0.00022438,2]
[311746240,1705374650767,-500.0,0.00022438,2]
[311746241,1705374650777,-500.0,0.00022438,2]
[311746242,1705374650786,-500.0,0.00022438,2]
[311746243,1705374650796,-737.67,0.00022438,2]
[311746244,1705374650806,-519.76,0.00022438,2]
[311746245,1705374650815,-500.0,0.00022438,2]
[311746246,1705374650825,-572.95,0.00022438,2]
[311746247,1705374650834,-500.0,0.00022438,2]
[311746248,1705374650844,-500.0,0.00022438,2]
[311746249,1705374650853,-542.76,0.00022438,2]
[311746250,1705374650947,-539.25,0.00022438,2]
[311746251,1705374650993,-791.97,0.00022438,2]
[311746252,1705374651002,-630.83,0.00022438,2]
[311746253,1705374651012,-500.0,0.00022438,2]
[311746254,1705374651022,-685.13,0.00022438,2]
[311746255,1705374651031,-500.0,0.00022438,2]
[311746256,1705374651041,-500.0,0.00022438,2]
[311746257,1705374651051,-1151.71,0.00022438,2]
[311746258,1705374651061,-500.0,0.00022438,2]
[311746259,1705374651071,-500.0,0.00022438,2]
[311746260,1705374651080,-1288.69,0.00022438,2]
[311746261,1705374651089,-500.0,0.00022438,2]
[311746262,1705374651098,-500.0,0.00022438,2]
[311746263,1705374651108,-520.2,0.00022438,2]
[311746264,1705374651118,-500.0,0.00022438,2]
[311746265,1705374651127,-500.0,0.00022438,2]
[311746266,1705374651137,-500.0,0.00022438,2]
[311746267,1705374651146,-500.0,0.00022438,2]
[311746268,1705374651155,-579.98,0.00022438,2]
[311746269,1705374651165,-630.38,0.00022438,2]
[311746270,1705374651175,-500.0,0.00022438,2]
[311746271,1705374651184,-690.5,0.00022438,2]
[311746272,1705374651197,-500.0,0.00022438,2]
[311746273,1705374651207,-585.48,0.00022438,2]
[311746274,1705374651217,-500.0,0.00022438,2]
[311746275,1705374651227,-500.0,0.00022438,2]
[311746276,1705374651238,-500.0,0.00022438,2]
[311746277,1705374651248,-500.0,0.00022438,2]
[311746278,1705374651257,-500.0,0.00022438,2]
[311746279,1705374651268,-534.43,0.00022438,2]
[311746280,1705374651277,-500.0,0.00022438,2]
[311746281,1705374651286,-500.0,0.00022438,2]
[311746282,1705374651296,-656.28,0.00022438,2]
[311746283,1705374651305,-500.0,0.00022438,2]
[311746284,1705374651314,-500.0,0.00022438,2]
[311746285,1705374651324,-505.05,0.00022438,2]
[311746286,1705374651333,-514.83,0.00022438,2]
[311746287,1705374651342,-500.0,0.00022438,2]
[311746288,1705374651352,-500.0,0.00022438,2]
[311746289,1705374651361,-2546.32,0.00022438,2]
[311746290,1705374651371,-592.11,0.00022438,2]
[311746291,1705374651380,-745.5,0.00022438,2]
[311746292,1705374651390,-500.0,0.00022438,2]
[311746293,1705374651399,-500.0,0.00022438,2]
[311746294,1705374651408,-500.0,0.00022438,2]
[311746295,1705374651418,-500.0,0.00022438,2]
[311746296,1705374651428,-953.93,0.00022438,2]
[311746297,1705374651437,-500.0,0.00022438,2]
[311746298,1705374651447,-500.0,0.00022438,2]
[311746299,1705374651456,-500.0,0.00022438,2]
[311746300,1705374651465,-793.41,0.00022438,2]
[311746301,1705374651475,-500.0,0.00022438,2]
[311746302,1705374651484,-500.0,0.00022438,2]
[311746303,1705374651494,-805.12,0.00022438,2]
[311746304,1705374651503,-500.0,0.00022438,2]
[311746305,1705374651513,-500.0,0.00022438,2]
[311746306,1705374651522,-319.23118971,0.00022438,2]
[311746307,1705374651532,-500.0,0.00022438,2]
[311746308,1705374651542,-967.05,0.00022438,2]
[311746309,1705374651552,-1071.09,0.00022438,2]
[311746310,1705374651562,-581.71,0.00022438,2]
[311746311,1705374651571,-500.0,0.00022438,2]
[311746312,1705374651581,-500.0,0.00022438,2]
[311746313,1705374651591,-1074.28,0.00022438,2]
[311746314,1705374651601,-500.0,0.00022438,2]
[311746315,1705374651611,-765.79,0.00022438,2]
[311746316,1705374651620,-631.65,0.00022438,2]
[311746317,1705374651630,-814.66,0.00022438,2]
[311746318,1705374651640,-1122.3,0.00022438,2]
[311746319,1705374651649,-250.0,0.00022438,2]
[311746320,1705374651659,-500.0,0.00022438,2]
[311746321,1705374651669,-994.86,0.00022438,2]
[311746322,1705374651678,-890.21,0.00022438,2]
[311746323,1705374651687,-520.01,0.00022438,2]
[311746324,1705374651697,-500.0,0.00022438,2]
[311746325,1705374651706,-1752.23,0.00022438,2]
[311746326,1705374651715,-576.72,0.00022438,2]
[311746327,1705374651725,-500.0,0.00022438,2]
[311746328,1705374651735,-2537.29,0.00022438,2]
[311746329,1705374651744,-769.52,0.00022438,2]
[311746330,1705374651754,-500.0,0.00022438,2]
[311746331,1705374651763,-571.81,0.00022438,2]
[311746332,1705374651773,-500.0,0.00022438,2]
[311746333,1705374651783,-949.04,0.00022438,2]
[311746334,1705374651792,-518.05,0.00022438,2]
[311746335,1705374651803,-500.0,0.00022438,2]
[311746336,1705374651812,-786.45,0.00022438,2]
[311746337,1705374651822,-500.0,0.00022438,2]
[311746338,1705374651831,-500.0,0.00022438,2]
[311746339,1705374651841,-524.46,0.00022438,2]
[311746340,1705374651850,-667.73,0.00022438,2]
[311746341,1705374651860,-500.0,0.00022438,2]
[311746342,1705374651869,-1520.88,0.00022438,2]
[311746343,1705374651879,-1843.49,0.00022438,2]
[311746344,1705374651889,-500.0,0.00022438,2]
[311746345,1705374651898,-2730.24,0.00022438,2]
[311746346,1705374651907,-500.0,0.00022438,2]
[311746347,1705374651916,-500.0,0.00022438,2]
[311746348,1705374651926,-500.0,0.00022438,2]
[311746349,1705374651935,-684.81,0.00022438,2]
[311746350,1705374651944,-903.2,0.00022438,2]
[311746351,1705374651954,-606.84,0.00022438,2]
[311746352,1705374651963,-500.0,0.00022438,2]
[311746353,1705374651973,-500.0,0.00022438,2]
[311746354,1705374651982,-698.48,0.00022438,2]
[311746355,1705374651992,-14933.84,0.00022438,2]
[311746356,1705374652001,-500.0,0.00022438,2]
[311746357,1705374652010,-500.0,0.00022438,2]
[311746358,1705374652020,-636.39,0.00022438,2]
[311746359,1705374652029,-500.0,0.00022438,2]
[311746360,1705374652039,-623.75,0.00022438,2]
[311746361,1705374652049,-1464.47,0.00022438,2]
[311746362,1705374652059,-500.0,0.00022438,2]
[311746363,1705374652068,-500.0,0.00022438,2]
[311746364,1705374652078,-500.0,0.00022438,2]
[311746365,1705374652087,-500.0,0.00022438,2]
[311746366,1705374652097,-688.18,0.00022438,2]
[311746367,1705374652106,-839.87,0.00022438,2]
[311746368,1705374652116,-500.0,0.00022438,2]
[311746369,1705374652125,-500.0,0.00022438,2]
[311746370,1705374652134,-547.74,0.00022438,2]
[311746371,1705374652144,-500.0,0.00022438,2]
[311746372,1705374652153,-500.0,0.00022438,2]
[311746373,1705374652163,-686.01,0.00022438,2]
[311746374,1705374652172,-541.27,0.00022438,2]
[311746375,1705374652182,-1295.12,0.00022438,2]
[311746376,1705374652191,-500.0,0.00022438,2]
[311746377,1705374652201,-901.59,0.00022438,2]
[311746378,1705374652210,-500.0,0.00022438,2]
[311746379,1705374652220,-1078.49,0.00022438,2]
[311746380,1705374652229,-500.0,0.00022438,2]
[311746381,1705374652239,-619.43,0.00022438,2]
[311746382,1705374652249,-500.0,0.00022438,2]
[311746383,1705374652258,-500.0,0.00022438,2]
[311746384,1705374652268,-891.86,0.00022438,2]
[311746385,1705374652277,-2262.05,0.00022438,2]
[311746386,1705374652286,-879.91,0.00022438,2]
[311746387,1705374652296,-500.0,0.00022438,2]
[311746388,1705374652307,-1292.79,0.00022438,2]
[311746389,1705374652317,-550.48,0.00022438,2]
[311746390,1705374652326,-853.83,0.00022438,2]
[311746391,1705374652335,-500.0,0.00022438,2]
[311746392,1705374652345,-701.69,0.00022438,2]
[311746393,1705374652354,-354.39112232,0.00022438,2]
[311746394,1705374652363,-300.0,0.00022438,2]
[311746395,1705374652372,-701.51,0.00022438,2]
[311746396,1705374652381,-500.0,0.00022438,2]
[311746397,1705374652391,-500.0,0.00022438,2]
[311746398,1705374652400,-500.0,0.00022438,2]
[311746399,1705374652409,-712.92,0.00022438,2]
[311746400,1705374652418,-500.0,0.00022438,2]
[311746401,1705374652428,-2162.43,0.00022438,2]
[311746402,1705374652438,-500.92,0.00022438,2]
[311746403,1705374652447,-500.0,0.00022438,2]
[311746404,1705374652457,-500.0,0.00022438,2]
[311746405,1705374652466,-500.0,0.00022438,2]
[311746406,1705374652476,-882.88,0.00022438,2]
[311746407,1705374652485,-811.85,0.00022438,2]
[311746408,1705374652495,-500.0,0.00022438,2]
[311746409,1705374652505,-500.0,0.00022438,2]
[311746410,1705374652514,-782.92,0.00022438,2]
[311746411,1705374652524,-937.61,0.00022438,2]
[311746412,1705374652534,-1121.68,0.00022439,2]
[311746413,1705374652544,-500.0,0.00022439,2]
[311746414,1705374652556,-678.0,0.00022439,2]
[311746415,1705374652565,-500.0,0.00022439,2]
[311746416,1705374652575,-546.35,0.00022439,2]
[311746417,1705374652585,-500.0,0.00022439,2]
[311746418,1705374652596,-500.0,0.00022439,2]
[311746419,1705374652606,-500.0,0.00022439,2]
[311746420,1705374652616,-500.0,0.00022439,2]
[311746421,1705374652625,-606.69,0.00022439,2]
[311746422,1705374652635,-513.79,0.00022439,2]
[311746423,1705374652644,-1134.98,0.00022439,2]
[311746424,1705374652654,-338.20055564,0.00022439,2]
[311746425,1705374652664,-693.98,0.00022439,2]
[311746426,1705374652673,-734.94,0.00022439,2]
[311746427,1705374652682,-915.17,0.00022439,2]
[311746428,1705374652692,-500.0,0.00022439,2]
[311746429,1705374652701,-597.51,0.00022439,2]
[311746430,1705374652710,-602.78,0.00022439,2]
[311746431,1705374652720,-745.04,0.00022439,2]
[311746432,1705374652729,-348.89123516,0.00022439,2]
[311746433,1705374652739,-600.98,0.00022439,2]
[311746434,1705374652748,-500.0,0.00022439,2]
[311746435,1705374652757,-500.0,0.00022439,2]
[311746436,1705374652767,-680.2,0.00022439,2]
[311746437,1705374652776,-687.82,0.00022439,2]
[311746438,1705374652786,-731.62,0.00022439,2]
[311746439,1705374652795,-500.0,0.00022439,2]
[311746440,1705374652807,-500.0,0.00022439,2]
[311746441,1705374652816,-628.6,0.00022439,2]
[311746442,1705374652825,-500.0,0.00022439,2]
[311746443,1705374652834,-683.07,0.00022439,2]
[311746444,1705374652843,-311.07965776,0.00022439,2]
[311746445,1705374652853,-500.0,0.00022439,2]
[311746446,1705374652862,-500.0,0.00022439,2]
[311746447,1705374652872,-925.2,0.00022439,2]
[311746448,1705374652881,-500.0,0.00022439,2]
[311746449,1705374652890,-500.0,0.00022439,2]
[311746450,1705374652900,-1084.62,0.00022439,2]
[311746451,1705374652909,-617.24,0.00022439,2]
[311746452,1705374652918,-214.51977695,0.00022439,2]
[311746453,1705374652928,-593.53,0.00022439,2]
[311746454,1705374652938,-568.27,0.00022439,2]
[311746455,1705374652947,-907.93,0.00022439,2]
[311746456,1705374652959,-500.0,0.00022439,2]
[311746457,1705374652968,-500.0,0.00022439,2]
[311746458,1705374652977,-500.0,0.00022439,2]
[311746459,1705374652986,-977.11,0.00022439,2]
[311746460,1705374652995,-500.0,0.00022439,2]
[311746461,1705374653005,-646.51,0.00022439,2]
[311746462,1705374653015,-500.0,0.00022439,2]
[311746463,1705374653024,-500.0,0.00022439,2]
[311746464,1705374653036,-500.0,0.00022439,2]
[311746465,1705374653047,-1140.86,0.00022439,2]
[311746466,1705374653059,-1072.85,0.00022439,2]
[311746467,1705374653365,-637.63,0.00022439,2]
[311746468,1705374653376,-535.02,0.00022439,2]
[311746469,1705374653386,-705.18,0.00022439,2]
[311746470,1705374653395,-1044.31,0.00022439,2]
[311746471,1705374653404,-599.1,0.00022439,2]
[311746472,1705374653413,-500.0,0.00022439,2]
[311746473,1705374653423,-500.0,0.00022439,2]
[311746474,1705374653433,-731.35,0.00022439,2]
[311746475,1705374653442,-500.0,0.00022439,2]
[311746476,1705374653452,-500.0,0.00022439,2]
[311746477,1705374653461,-500.0,0.00022439,2]
[311746478,1705374653471,-786.15,0.00022439,2]
[311746479,1705374653480,-817.54,0.00022439,2]
[311746480,1705374653489,-698.73,0.00022439,2]
[311746481,1705374653499,-500.0,0.00022439,2]
[311746482,1705374653508,-702.82,0.00022439,2]
[311746483,1705374653518,-500.0,0.00022439,2]
[311746484,1705374653527,-1031.39,0.00022439,2]
[311746485,1705374653537,-743.02,0.00022439,2]
[311746486,1705374653547,-524.54,0.00022439,2]
[311746487,1705374653557,-625.17,0.00022439,2]
[311746488,1705374653566,-943.13,0.00022439,2]
[311746489,1705374653575,-500.0,0.00022439,2]
[311746490,1705374653585,-500.0,0.00022439,2]
[311746491,1705374653595,-528.49247441,0.00022439,2]
[311746492,1705374653604,-500.0,0.00022439,2]
[311746493,1705374653614,-646.33,0.00022439,2]
[311746494,1705374653623,-500.0,0.00022439,2]
[311746495,1705374653632,-559.45,0.00022439,2]
[311746496,1705374653641,-640.09,0.00022439,2]
[311746497,1705374653650,-583.07,0.00022439,2]
[311746498,1705374653660,-500.0,0.00022439,2]
[311746499,1705374653669,-622.34,0.00022439,2]
[311746500,1705374653679,-500.0,0.00022439,2]
[311746501,1705374653688,-500.0,0.00022439,2]
[311746502,1705374653698,-500.0,0.00022439,2]
[311746503,1705374653709,-660.75,0.00022439,2]
[311746504,1705374653718,-791.03,0.00022439,2]
[311746505,1705374653728,-679.36,0.00022439,2]
[311746506,1705374653738,-665.21,0.00022439,2]
[311746507,1705374653747,-500.0,0.00022439,2]
[311746508,1705374653756,-1043.92,0.00022439,2]
[311746509,1705374653766,-500.0,0.00022439,2]
[311746510,1705374653775,-513.41,0.00022439,2]
[311746511,1705374653785,-1032.92,0.00022439,2]
[311746512,1705374653794,-500.0,0.00022439,2]
[311746513,1705374653804,-776.66,0.00022439,2]
[311746514,1705374653813,-500.0,0.00022439,2]
[311746515,1705374653823,-1120.34,0.00022439,2]
[311746516,1705374653833,-500.0,0.00022439,2]
[311746517,1705374653842,-500.0,0.00022439,2]
[311746518,1705374653851,-1529.34,0.00022439,2]
[311746519,1705374653861,-500.0,0.00022439,2]
[311746520,1705374653870,-660.31,0.00022439,2]
[311746521,1705374653879,-910.73,0.00022439,2]
[311746522,1705374653889,-500.0,0.00022439,2]
[311746523,1705374653898,-262.26457086,0.00022439,2]
[311746524,1705374653907,-527.61,0.00022439,2]
[311746525,1705374653917,-948.73,0.00022439,2]
[311746526,1705374653926,-196.96495948,0.00022439,2]
[311746527,1705374653935,-1145.85,0.00022439,2]
[311746528,1705374653944,-500.0,0.00022439,2]
[311746529,1705374653954,-500.0,0.00022439,2]
[311746530,1705374653963,-500.0,0.00022439,2]
[311746531,1705374653972,-500.0,0.00022439,2]
[311746532,1705374653982,-1028.57,0.00022439,2]
[311746533,1705374653991,-500.0,0.00022439,2]
[311746534,1705374654001,-500.0,0.00022439,2]
[311746535,1705374654010,-2736.81,0.00022439,2]
[311746536,1705374654020,-680.35,0.00022439,2]
[311746537,1705374654030,-318.56,0.00022439,2]
[311746538,1705374654039,-738.04,0.00022439,2]
[311746539,1705374654049,-500.0,0.00022439,2]
[311746540,1705374654059,-583.06,0.00022439,2]
[311746541,1705374654068,-367.38750937,0.00022439,2]
[311746542,1705374654077,-2846.26,0.00022439,2]
[311746543,1705374654087,-548.89,0.00022439,2]
[311746544,1705374654096,-531.65,0.00022439,2]
[311746545,1705374654105,-764.53,0.00022439,2]
[311746546,1705374654116,-500.0,0.00022439,2]
[311746547,1705374654125,-500.0,0.00022439,2]
[311746548,1705374654137,-500.0,0.00022439,2]
[311746549,1705374654146,-242.38076722,0.00022439,2]
[311746550,1705374654156,-778.21,0.00022439,2]
[311746551,1705374654166,-579.26,0.00022439,2]
[311746552,1705374654176,-500.0,0.00022439,2]
[311746553,1705374654187,-500.0,0.00022439,2]
[311746554,1705374654198,-656.84,0.00022439,2]
[311746555,1705374654207,-500.0,0.00022439,2]
[311746556,1705374654218,-990.61,0.00022439,2]
[311746557,1705374654228,-500.0,0.00022439,2]
[311746558,1705374654238,-1268.31,0.00022439,2]
[311746559,1705374654247,-591.12,0.00022439,2]
[311746560,1705374654256,-500.0,0.00022439,2]
[311746561,1705374654266,-670.88,0.00022439,2]
[311746562,1705374654275,-723.6,0.00022439,2]
[311746563,1705374654285,-500.0,0.00022439,2]
[311746564,1705374654294,-500.0,0.00022439,2]
[311746565,1705374654304,-500.0,0.00022439,2]
[311746566,1705374654313,-726.98,0.00022439,2]
[311746567,1705374654322,-560.16,0.00022439,2]
[311746568,1705374654332,-586.17,0.00022439,2]
[311746569,1705374654341,-500.0,0.00022439,2]
[311746570,1705374654350,-500.0,0.00022439,2]
[311746571,1705374654359,-500.0,0.00022439,2]
[311746572,1705374654369,-1186.05,0.00022439,2]
[311746573,1705374654379,-500.0,0.00022439,2]
[311746574,1705374654388,-500.0,0.00022439,2]
[311746575,1705374654397,-613.84,0.00022439,2]
[311746576,1705374654408,-522.7008338,0.00022439,2]
[311746577,1705374654417,-563.33,0.00022439,2]
[311746578,1705374654427,-500.0,0.00022439,2]
[311746579,1705374654437,-913.01,0.00022439,2]
[311746580,1705374654446,-500.0,0.00022439,2]
[311746581,1705374654456,-761.42,0.00022439,2]
[311746582,1705374654465,-500.0,0.00022439,2]
[311746583,1705374654474,-1270.17,0.00022439,2]
[311746584,1705374654483,-500.0,0.00022439,2]
[311746585,1705374654492,-596.91,0.00022439,2]
[311746586,1705374654501,-500.0,0.00022439,2]
[311746587,1705374654511,-500.0,0.00022439,2]
[311746588,1705374654520,-536.34748326,0.00022439,2]
[311746589,1705374654530,-500.0,0.00022439,2]
[311746590,1705374654539,-500.0,0.00022439,2]
[311746591,1705374654549,-598.57,0.00022439,2]
[311746592,1705374654558,-154.44749225,0.00022439,2]
[311746593,1705374654567,-500.0,0.00022439,2]
[311746594,1705374654577,-500.0,0.00022439,2]
[311746595,1705374654586,-500.0,0.00022439,2]
[311746596,1705374654596,-500.0,0.00022439,2]
[311746597,1705374654605,-863.98,0.00022445,2]
[311746598,1705374654614,-539.28,0.00022446,2]
[311746599,1705374654624,-500.0,0.00022446,2]
[311746600,1705374654633,-941.75,0.00022446,2]
[311746601,1705374654644,-500.0,0.00022446,2]
[311746602,1705374654653,-500.0,0.00022446,2]
[311746603,1705374654663,-661.13,0.00022446,2]
[311746604,1705374654674,-500.0,0.00022446,2]
[311746605,1705374654683,-644.37,0.00022446,2]
[311746606,1705374654693,-23784.81759262,0.00022449,2]
[311746607,1705374654702,-154.77,0.00022452,2]
[311746608,1705374654711,-12294.16339703,0.000225,2]
[311746609,1705374654721,-300.0,0.000225,2]
[311746610,1705374654730,-300.0,0.000225,2]
[311746611,1705374654739,-313.95,0.000225,2]
[311746612,1705374654749,-293.77,0.000225,2]
[311746613,1705374654759,-336.99,0.000225,2]
[311746614,1705374654768,-940.88,0.000225,2]
[311746615,1705374654777,-940.88,0.000225,2]
[311746616,1705374654787,-940.88,0.000225,2]
[311746617,1705374654796,-940.88,0.000225,2]
[311746618,1705374654806,-959.84,0.000225,2]
[311746619,1705374654815,-196.99,0.00022518,2]
[311746620,1705374654824,-23784.81759262,0.00022525,2]
[311746621,1705374654834,-405.27605707,0.0002254,2]
[311746622,1705374654843,-200.0,0.00022543,2]
[311746623,1705374654852,-154.77,0.00022593,2]
[311746624,1705374654861,-7999.99,0.000226,3]
[311746625,1705374654871,-23784.81759262,0.000226,2]
[311746626,1705374654880,-940.88,0.000226,2]
[311746627,1705374654889,-401.27,0.000226,2]
[311746628,1705374654899,-196.99,0.0002263,2]
[311746629,1705374654908,-500.0,0.00022631,2]
[311746630,1705374654917,-405.27605707,0.0002266,2]
[311746631,1705374654926,-23784.81759262,0.00022675,2]
[311746632,1705374654935,-3479.0,0.000227,2]
[311746633,1705374654945,-37344.0,0.000227,2]
[311746634,1705374654954,-2777.1,0.00022706,2]
[311746635,1705374654964,-675.13,0.00022706,2]
[311746636,1705374654973,-971.91,0.00022706,2]
[311746637,1705374654982,-600.55,0.00022706,2]
[311746638,1705374654991,-4753.34,0.00022706,2]
[311746639,1705374655000,-1300.49,0.00022706,2]
[311746640,1705374655010,-1610.9,0.00022706,2]
[311746641,1705374655019,-826.67,0.00022706,2]
[311746642,1705374655029,-759.23,0.00022706,2]
[311746643,1705374655039,-1472.66,0.00022706,2]
[311746644,1705374655048,-1896.81,0.00022706,2]
[311746645,1705374655059,-580.88,0.00022706,2]
[311746646,1705374655068,-834.97,0.00022706,2]
[311746647,1705374655082,-500.0,0.00022706,5]
[311746648,1705374655091,-3571.95,0.00022706,2]
[311746649,1705374655101,-1736.05,0.00022706,2]
[311746650,1705374655111,-737.59,0.00022706,2]
[311746651,1705374655120,-2762.84,0.00022706,2]
[311746652,1705374655129,-19363.98,0.00022706,2]
[311746653,1705374655138,-500.0,0.00022706,2]
[311746654,1705374655148,-500.0,0.00022706,2]
[311746655,1705374655157,-1430.63,0.00022706,2]
[311746656,1705374655166,-1553.73,0.00022706,2]
[311746657,1705374655176,-7142.4,0.00022706,2]
[311746658,1705374655185,-950.86,0.00022706,2]
[311746659,1705374655199,-500.0,0.00022706,2]
[311746660,1705374655208,-11074.17,0.00022706,2]
[311746661,1705374655218,-667.18,0.00022706,2]
[311746662,1705374655227,-984.76,0.00022706,2]
[311746663,1705374655238,-1020.16,0.00022706,2]
[311746664,1705374655247,-579.17,0.00022706,2]
[311746665,1705374655256,-2523.6,0.00022706,2]
[311746666,1705374655266,-1258.9,0.00022706,2]
[311746667,1705374655275,-1809.85,0.00022706,2]
[311746668,1705374655285,-1664.86,0.00022706,2]
[311746669,1705374655294,-11478.92,0.00022706,2]
[311746670,1705374655304,-566.87,0.00022706,2]
[311746671,1705374655313,-1439.81,0.00022706,2]
[311746672,1705374655322,-1101.88,0.00022706,2]
[311746673,1705374655331,-1125.23,0.00022706,2]
[311746674,1705374655341,-684.93,0.00022706,2]
[311746675,1705374655350,-1163.66,0.00022706,2]
[311746676,1705374655359,-875.72,0.00022706,2]
[311746677,1705374655369,-500.0,0.00022706,2]
[311746678,1705374655378,-1333.46,0.00022706,2]
[311746679,1705374655388,-6259.22,0.00022706,2]
[311746680,1705374655397,-825.96,0.00022706,2]
[311746681,1705374655406,-1197.15,0.00022706,2]
[311746682,1705374655416,-1811.38,0.00022706,2]
[311746683,1705374655425,-623.64,0.00022706,2]
[311746684,1705374655434,-500.0,0.00022708,2]
[311746685,1705374655444,-745.86,0.00022708,2]
[311746686,1705374655454,-500.0,0.00022708,2]
[311746687,1705374655463,-590.19,0.00022708,2]
[311746688,1705374655473,-500.0,0.00022708,2]
[311746689,1705374655483,-930.05,0.00022708,2]
[311746690,1705374655492,-500.0,0.00022708,2]
[311746691,1705374655501,-791.41,0.00022708,2]
[311746692,1705374655510,-500.0,0.00022708,2]
[311746693,1705374655520,-502.89,0.00022708,2]
[311746694,1705374655529,-500.0,0.00022708,2]
[311746695,1705374655538,-582.41,0.00022708,2]
[311746696,1705374655548,-500.0,0.00022708,2]
[311746697,1705374655558,-500.0,0.00022708,2]
[311746698,1705374655567,-605.41,0.00022708,2]
[311746699,1705374655576,-841.87,0.00022708,2]
[311746700,1705374655586,-557.3,0.00022708,2]
[311746701,1705374655596,-528.34,0.00022708,2]
[311746702,1705374655605,-500.0,0.00022708,2]
[311746703,1705374655615,-500.0,0.00022708,2]
[311746704,1705374655624,-500.0,0.00022708,2]
[311746705,1705374655633,-500.0,0.00022708,2]
[311746706,1705374655643,-538.56,0.00022708,2]
[311746707,1705374655652,-594.73,0.00022708,2]
[311746708,1705374655749,-500.0,0.00022708,2]
[311746709,1705374655759,-624.14,0.00022708,2]
[311746710,1705374655768,-500.0,0.00022708,2]
[311746711,1705374655778,-577.61,0.00022708,2]
[311746712,1705374655787,-500.0,0.00022708,2]
[311746713,1705374655796,-500.0,0.00022708,2]
[311746714,1705374655806,-500.0,0.00022708,2]
[311746715,1705374655815,-500.0,0.00022708,2]
[311746716,1705374655824,-500.0,0.00022708,2]
[311746717,1705374655834,-628.57,0.00022708,2]
[311746718,1705374655843,-537.83,0.00022708,2]
[311746719,1705374655852,-500.0,0.00022708,2]
[311746720,1705374655861,-500.0,0.00022708,2]